Cogmind - Beta 12 X1 @@@ ROGUE MODE // 2022.07.12 @ 23:43:46 Player: Runia Result: Destroyed by B-75 Beast with Magnetic Acceleration Cannon Performance ------------- Evolutions (2) 1000 Regions Visited (8) 1600 Robots Destroyed (81) 405 Value Destroyed (3466) 3466 Prototype IDs (1) 20 Alien Tech Used (0) 0 Bonus (1256) 1256 TOTAL SCORE: 7747 Bonus ------- High Alert Combat Kills 379 Follower Combat Kills 178 Entered Garrisons 400 Used RIF Installer 500 Friendly Fire -201 Cogmind --------- Core Integrity 0/550 Matter 52/300 Energy 253/265 System Corruption 15% Temperature Cool (0) Movement Core (1650) Ox32 Location -8/Garrison Parts ------- > --- POWER (1) -------- Reinforced Ion Engine > --- PROPULSION (4) --- Carbon-fiber Leg Carbon-fiber Leg Carbon-fiber Leg > --- UTILITY (4) ------ Huge Storage Unit Relay Coupler [Grunt] (10) Relay Coupler [Sentry] (19) Relay Coupler [Behemoth] (11) > --- WEAPON (2) ------- Heavy Particle Cannon Remote Datajack > --- INVENTORY (25) --- Light Nuclear Core Light Nuclear Core Advanced Heat Sink Compact Matter Pod (0) Compact Matter Pod (0) Structural Scanner Relay Coupler [NC] (27) Relay Coupler [NC] (22) Relay Coupler [Swarmer] (35) Relay Coupler [Sentry] (18) Relay Coupler [Demolisher] (17) Relay Coupler [Hunter] (12) Relay Coupler [Hunter] (12) High-powered Tractor Beam Sensor Drone Bay (20/20) EM Pulse Cannon Light Assault Rifle Heavy Assault Rifle Assault Cannon Heavy Rocket Launcher Heavy Rocket Launcher Heavy Rocket Launcher Remote Datajack Peak State ------------ > --- POWER ------------ Reinforced Ion Engine > --- PROPULSION ------- Light Treads Carbon-fiber Leg Carbon-fiber Leg Carbon-fiber Leg > --- UTILITY ---------- Huge Storage Unit Relay Coupler [Grunt] Relay Coupler [Sentry] Relay Coupler [Behemoth] > --- WEAPON ----------- Heavy Particle Cannon Heavy Rocket Launcher > --- INVENTORY -------- Light Nuclear Core Light Nuclear Core Advanced Heat Sink Compact Matter Pod Compact Matter Pod Structural Scanner Relay Coupler [NC] Relay Coupler [NC] Relay Coupler [Swarmer] Relay Coupler [Sentry] Relay Coupler [Demolisher] Relay Coupler [Hunter] Relay Coupler [Hunter] High-powered Tractor Beam Sensor Drone Bay EM Pulse Cannon Light Assault Rifle Heavy Assault Rifle Assault Cannon Heavy Rocket Launcher Heavy Rocket Launcher Remote Datajack Remote Datajack [Rating: 40] Favorites ----------- Power Light Nuclear Core Engine Reinforced Ion Engine Power Core Light Nuclear Core Propulsion Light Treads Treads Light Treads Leg Carbon-fiber Leg Utility Huge Storage Unit Device Improved Heat Sink Storage Huge Storage Unit Processor Advanced Targeting Computer Hackware Relay Coupler [Grunt] Protection Light Armor Plating Weapon Heavy Assault Rifle Energy Gun Medium Laser Energy Cannon Heavy Particle Cannon Ballistic Gun Heavy Assault Rifle Ballistic Cannon Bore Cannon Launcher Heavy Rocket Launcher Special Weapon Remote Datajack Build | -11 -10 -10 -10 -9 -8 -8 -8 -8 ------- Run | Scr Mat Min Exi Min Mat Gar Mat Gar Slots Evolved 4 | . . . . . 4 . . . Power . | . . . . . . . . . Propulsion 2 | . . . . . 2 . . . Utility 2 | . . . . . 2 . . . Weapon . | . . . . . . . . . Parts Attached 135 | 2 8 6 . 2 5 25 52 35 Power 7 | . 1 1 . . . 1 3 1 Engine 5 | . 1 . . . . . 3 1 Core 2 | . . 1 . . . 1 . . Reactor . | . . . . . . . . . Propulsion 31 | 2 . 1 . . 2 4 13 9 Treads 24 | 2 . 1 . . 2 4 13 2 Leg 7 | . . . . . . . . 7 Wheel . | . . . . . . . . . Hover . | . . . . . . . . . Flight . | . . . . . . . . . Utility 35 | . 3 1 . 2 3 6 11 9 Device 11 | . 1 . . 1 1 2 1 5 Storage 3 | . 2 . . 1 . . . . Processor 2 | . . . . . . . 2 . Hackware 9 | . . . . . . 2 3 4 Protection 10 | . . 1 . . 2 2 5 . Artifact . | . . . . . . . . . Weapon 62 | . 4 3 . . . 14 25 16 Energy Gun . | . . . . . . . . . Energy Cannon 2 | . . . . . . . . 2 Ballistic Gun 28 | . 3 2 . . . 8 10 5 Ballistic Cannon 8 | . . . . . . 1 5 2 Launcher 15 | . 1 . . . . 5 4 5 Special Weapon 9 | . . 1 . . . . 6 2 Impact Weapon . | . . . . . . . . . Slashing Weapon . | . . . . . . . . . Piercing Weapon . | . . . . . . . . . Special Melee Weapon . | . . . . . . . . . Unidentified Prototypes 1 | . . . . 1 . . . . Parts Lost 31 | . . . . . . 12 15 4 Power 4 | . . . . . . 1 3 . Propulsion 13 | . . . . . . 4 6 3 Utility 9 | . . . . . . 4 5 . Weapon 5 | . . . . . . 3 1 1 Highest Loss Streak 11 | . . . . . . 11 6 3 To Critical Strikes 1 | . . . . . . . 1 . Average Slot Usage (%) 92 | . 98 99 100 100 98 84 94 89 Engine 5 | . 14 6 . . . . 7 8 Core 5 | . . 7 14 14 9 8 . . Treads 26 | . 28 28 28 28 36 29 34 9 Leg 4 | . . . . . . . . 24 Device 6 | . 13 . . 1 9 7 1 12 Storage 10 | . 14 14 14 14 9 9 9 9 Hackware 5 | . . . . . . 5 15 9 Protection 6 | . . 13 14 12 16 7 4 . Ballistic Gun 16 | . 26 27 28 28 18 11 15 3 Ballistic Cannon 2 | . . . . . . 6 1 4 Naked Turns . | . . . . . . . . . Heaviest Build 105 | 12 90 34 34 105 98 102 104 103 Greatest Support 83 | 40 40 40 40 40 80 83 83 80 Greatest Overweight (x) 26 | . 2 . . 2 1 2 1 26 Average Overweight (x) . | . . . . . 1 1 1 2 Largest Inventory Capacity 25 | 8 25 15 15 25 25 25 25 25 Average Capacity 21 | 8 13 15 15 16 25 25 25 25 Most Carried 25 | 6 14 15 14 15 14 22 25 25 Average Carried 16 | 2 10 14 14 14 11 14 23 21 Final Capacity 25 | 8 15 15 15 25 25 25 25 25 Final Carried 23 | 3 14 14 14 15 14 22 17 23 Class Distribution -------------------- 45% | Mutant 42% | Bothacker-Mutant 11% | Scavenger-Mutant Dominant Class ---------------- Mutant | -10/Materials Mutant | -10/Mines Mutant | -10/Exiles Mutant | -9/Mines Mutant | -8/Materials Mutant | -8/Garrison Bothacker-Mutant | -8/Materials Bothacker-Mutant | -8/Garrison Resources | -11 -10 -10 -10 -9 -8 -8 -8 -8 ----------- Run | Scr Mat Min Exi Min Mat Gar Mat Gar Matter Collected 3173 | 238 286 294 . 20 50 826 877 582 Remotely 722 | . 286 42 . . . 215 . 179 Salvage Created 2664 | 107 343 134 . . . 725 1193 162 Parts 169 | 5 18 6 . . . 46 68 26 Haulers Intercepted 1 | . . . . . . . 1 . Recyclers Shooed 1 | 1 . . . . . . . . Parts Field Recycled . | . . . . . . . . . Retrieved Matter . | . . . . . . . . . Parts Self-Destructed . | . . . . . . . . . Prevented . | . . . . . . . . . Kills | -11 -10 -10 -10 -9 -8 -8 -8 -8 ------- Run | Scr Mat Min Exi Min Mat Gar Mat Gar Combat Hostiles Destroyed 74 | . 6 6 . . . 22 24 16 Guns 38 | . 5 6 . . . 7 18 2 Cannons 6 | . . . . . . 4 1 1 AOE 30 | . 1 . . . . 11 5 13 Classes Destroyed 14 | 2 2 1 . . . 3 4 2 Builder 1 | . . . . . . . 1 . Tunneler 1 | 1 . . . . . . . . Hauler 1 | . . . . . . . 1 . Recycler 4 | 1 1 . . . . . 2 . Watcher 3 | . 2 . . . . . 1 . Swarmer 23 | . . . . . . 6 4 13 Saboteur 1 | . . . . . . . . 1 Grunt 27 | . 6 2 . . . 9 9 1 Brawler 3 | . . . . . . . 3 . Duelist 1 | . . . . . . . 1 . Sentry 12 | . . . . . . 5 7 . Hunter 1 | . . . . . . . . 1 Programmer 3 | . . . . . . 3 . . Assembled 4 | . . 4 . . . . . . Best Kill Streak 8 | 2 3 2 . . . 4 8 6 Combat Bots Only 8 | . 2 2 . . . 4 8 6 Max Kills in Single Turn 5 | 1 1 1 . . . 2 5 4 Gunslinging . | . . . . . . . . . Exploded 4 | . 1 . . . . 2 3 4 Melee . | . . . . . . . . . Uniques/NPCs Destroyed . | . . . . . . . . . Combat | -11 -10 -10 -10 -9 -8 -8 -8 -8 -------- Run | Scr Mat Min Exi Min Mat Gar Mat Gar Damage Taken 5279 | . 175 278 . . . 1653 2380 793 Core 632 | . 43 38 . . . 144 236 171 Absorbed by Shields . | . . . . . . . . . Regen/Repaired (Parts) 152 | . . . . . . . 152 . Core Remaining (%) 83 | 100 . . . 67 . . . . Volleys Fired 261 | 6 17 16 . . 1 86 109 26 Largest 2 | 2 2 2 . . 1 2 2 2 Hottest 119 | 70 46 100 . . 23 80 80 119 Shots Fired 444 | 12 33 30 . . 1 140 196 32 Gun 353 | 12 32 28 . . 1 104 164 12 Cannon 47 | . . . . . . 24 15 8 Launcher 28 | . 1 . . . . 12 6 9 Special 16 | . . 2 . . . . 11 3 Kinetic 389 | 6 32 28 . . 1 128 179 15 Thermal 13 | 6 . 2 . . . . . 5 Explosive 28 | . 1 . . . . 12 6 9 Electromagnetic . | . . . . . . . . . Robot Hit Streak 27 | 6 5 12 . . 2 20 27 7 Robot Miss Streak 4 | 2 3 3 . . . 4 2 3 Penetration Max . | . . . . . . . . . Secondary Targets 5 | . . 1 . . . 1 3 . Max Gunslinging Chain 1 | . . 1 . . . 1 1 . Shots Hit Robots 288 | 7 19 17 . . 1 90 141 13 Core Hits 161 | 3 13 11 . . . 47 67 20 Critical Kills 1 | . . . . . . 1 . . Critical Parts Destroyed 4 | . . . . . . 2 2 . Critical Strikes 5 | . . . . . . 3 2 . Destroy 5 | . . . . . . 3 2 . Melee Attacks . | . . . . . . . . . Impact . | . . . . . . . . . Slashing . | . . . . . . . . . Piercing . | . . . . . . . . . Sneak Attacks . | . . . . . . . . . Combat Hostiles . | . . . . . . . . . Follow-up Attacks . | . . . . . . . . . Damage Inflicted 7153 | 99 475 262 . . 16 2710 2355 1236 Guns 3412 | 99 276 262 . . 16 1198 1476 85 Cannons 408 | . . . . . . 246 137 25 Explosions 3293 | . 199 . . . . 1266 733 1095 Melee . | . . . . . . . . . Ramming 40 | . . . . . . . 9 31 Kinetic 3745 | 49 276 262 . . 16 1444 1613 85 Thermal 220 | 50 145 . . . . . . 25 Explosive 3148 | . 54 . . . . 1266 733 1095 Electromagnetic . | . . . . . . . . . Impact . | . . . . . . . . . Slashing . | . . . . . . . . . Piercing . | . . . . . . . . . Highest Corruption 15 | . . . . . . 12 15 15 Average Corruption 13 | . . . . . . 11 12 15 Corruption Purged . | . . . . . . . . . Corruption Blocked . | . . . . . . . . . Effects 167 | . . . . . . 69 51 47 Message Errors 42 | . . . . . . 17 15 10 Matter Fused 40 | . . . . . . 10 16 14 Heat Flow Errors 22 | . . . . . . 10 6 6 Energy Discharges 20 | . . . . . . 9 4 7 Parts Rejected 1 | . . . . . . . . 1 Data Loss (minor) 20 | . . . . . . 13 3 4 Data Loss (major) 6 | . . . . . . 3 1 2 Misfires 4 | . . . . . . 1 3 . Alerts 5 | . . . . . . 4 . 1 Weapon Failures 7 | . . . . . . 2 3 2 Overload Shots . | . . . . . . . . . Overflow Damage 212 | . 49 . . . . 59 8 96 Projectiles 15 | . . . . . . . . 15 Explosions 197 | . 49 . . . . 59 8 81 Melee . | . . . . . . . . . Knockbacks 1 | . . . . . . . 1 . Impact . | . . . . . . . . . Kinetic 1 | . . . . . . . 1 . Secondary . | . . . . . . . . . Self-Inflicted Damage 267 | . . . . . . . 113 154 Shots 8 | . . . . . . . 4 4 Rammed 8 | . . . . . . . 2 6 Targets Rammed 8 | . . . . . . . 2 6 Kicked . | . . . . . . . . . Crushed . | . . . . . . . . . Highest Temperature 310 | 27 4 80 . . . 242 310 273 Average Temperature 62 | 14 1 28 . . . 51 83 107 Received Heat Transfer 1513 | . 99 154 . . . 306 909 45 Siege Activations . | . . . . . . . . . Robots Corrupted . | . . . . . . . . . Combat Hostiles . | . . . . . . . . . Parts Fried . | . . . . . . . . . Impact Corruptions . | . . . . . . . . . Robots Melted . | . . . . . . . . . Combat Hostiles . | . . . . . . . . . Parts Melted . | . . . . . . . . . Heat Transferred 285 | 148 100 . . . . . . 37 Parts Sabotaged 9 | . . . . . . . . 9 Parts Stolen . | . . . . . . . . . Parts Stripped . | . . . . . . . . . Power Chain Reactions . | . . . . . . . . . Missiles Intercepted . | . . . . . . . . . Alert | -11 -10 -10 -10 -9 -8 -8 -8 -8 ------- Run | Scr Mat Min Exi Min Mat Gar Mat Gar Peak Influence 984 | 10 156 116 . . 35 984 654 906 Initial 479 | . 6 51 . . . 25 479 274 Average 348 | 5 80 39 . . 14 515 511 438 Maximum Alert Level 3 | . . . . . . 3 2 3 Low Security (%) 35 | 100 100 100 . 100 100 10 . . Level 1 14 | . . . . . . 6 12 56 Level 2 43 | . . . . . . 64 87 42 Level 3 6 | . . . . . . 18 . 1 Level 4 . | . . . . . . . . . Level 5 . | . . . . . . . . . High Security . | . . . . . . . . . Max Security . | . . . . . . . . . Squads Dispatched 5 | . 1 . . . . . 4 . Investigation . | . . . . . . . . . Extermination . | . . . . . . . . . Reinforcement 2 | . 1 . . . . . 1 . Assault 1 | . . . . . . . 1 . Garrison 2 | . . . . . . . 2 . Intercept . | . . . . . . . . . Searches Triggered . | . . . . . . . . . Construction Impeded . | . . . . . . . . . Haulers Reinforced . | . . . . . . . . . Active Scanning Responses . | . . . . . . . . . Cargo Convoy Interrupts . | . . . . . . . . . Stealth | -11 -10 -10 -10 -9 -8 -8 -8 -8 --------- Run | Scr Mat Min Exi Min Mat Gar Mat Gar Distress Signals 3 | . 1 . . . . . 2 . Communications Jammed . | . . . . . . . . . Distress Signals . | . . . . . . . . . Times Spotted 105 | . 9 6 . . 1 29 35 25 Peak Tracking Total 8 | . 3 2 . . . 4 5 8 Tactical Retreats 1 | . . . . . . 1 . . Traps | -11 -10 -10 -10 -9 -8 -8 -8 -8 ------- Run | Scr Mat Min Exi Min Mat Gar Mat Gar Traps Triggered 7 | . . . . . . 1 . 6 Indirectly . | . . . . . . . . . Trap Hack Attempts . | . . . . . . . . . Triggered . | . . . . . . . . . Disarmed . | . . . . . . . . . Reprogrammed . | . . . . . . . . . Reused . | . . . . . . . . . Traps Extracted . | . . . . . . . . . Installed . | . . . . . . . . . Triggered . | . . . . . . . . . Machines | -11 -10 -10 -10 -9 -8 -8 -8 -8 ---------- Run | Scr Mat Min Exi Min Mat Gar Mat Gar Machines Disabled 8 | . 1 . . . . 3 1 3 Max in Single Turn 1 | . 1 . . . . 1 1 1 Garrison Relay 5 | . . . . . . 3 . 2 Machines Sabotaged . | . . . . . . . . . Garrisons Compromised . | . . . . . . . . . Overloaded Fab Kills . | . . . . . . . . . Hacking | -11 -10 -10 -10 -9 -8 -8 -8 -8 --------- Run | Scr Mat Min Exi Min Mat Gar Mat Gar Machines Accessed 10 | . . . 1 1 1 2 3 2 Terminals 6 | . . . . . . 2 2 2 Fabricators . | . . . . . . . . . Repair Stations . | . . . . . . . . . Recycling Units . | . . . . . . . . . Scanalyzers . | . . . . . . . . . Garrison Access 2 | . . . . . 1 . 1 . Total Hacks 16 | . . . 1 1 1 3 8 2 Successful 9 | . . . 1 1 1 . 4 2 Failed 7 | . . . . . . 3 4 . Catastrophic 1 | . . . . . . 1 . . Database Lockouts . | . . . . . . . . . Manual . | . . . . . . . . . Terminals 12 | . . . . . . 3 7 2 Fabricators . | . . . . . . . . . Repair Stations . | . . . . . . . . . Recycling Units . | . . . . . . . . . Scanalyzers . | . . . . . . . . . Garrison Access 2 | . . . . . 1 . 1 . Terminal Hacks 7 | . . . 1 1 . . 3 2 Record 1 | . . . 1 . . . . . Robot Analysis 1 | . . . . . . . 1 . Open Door 1 | . . . . 1 . . . . Hauler Manifests 1 | . . . . . . . 1 . Zone Layout 1 | . . . . . . . 1 . Garrison Registry 1 | . . . . . . . . 1 Security Stations 1 | . . . . . . . . 1 Fabricator Hacks . | . . . . . . . . . Repair Station Hacks . | . . . . . . . . . Recycling Unit Hacks . | . . . . . . . . . Scanalyzer . | . . . . . . . . . Garrison Access Hacks 2 | . . . . . 1 . 1 . Unlock Access 2 | . . . . . 1 . 1 . Unauthorized Hacks . | . . . . . . . . . Terminals . | . . . . . . . . . Fabricators . | . . . . . . . . . Repair Stations . | . . . . . . . . . Recycling Units . | . . . . . . . . . Scanalyzers . | . . . . . . . . . Garrison Access . | . . . . . . . . . Data Cores Recovered . | . . . . . . . . . Used . | . . . . . . . . . Hacking Detections 6 | . . . . . . 2 2 2 Full Trace Events . | . . . . . . . . . Feedback Events . | . . . . . . . . . Feedback Blocked . | . . . . . . . . . Robot Schematics Acquired . | . . . . . . . . . Robots Built . | . . . . . . . . . Authchips . | . . . . . . . . . Time . | . . . . . . . . . Total Robot Build Rating . | . . . . . . . . . Part Schematics Acquired . | . . . . . . . . . Parts Built . | . . . . . . . . . Authchips . | . . . . . . . . . Time . | . . . . . . . . . Total Part Build Rating . | . . . . . . . . . Parts Repaired . | . . . . . . . . . Time . | . . . . . . . . . Parts Recycled . | . . . . . . . . . Recycled Matter . | . . . . . . . . . Retrieved Matter . | . . . . . . . . . Retrieved Components . | . . . . . . . . . Parts Scanalyzed . | . . . . . . . . . Part Schematics Acquired . | . . . . . . . . . Parts Damaged . | . . . . . . . . . Bothacking | -11 -10 -10 -10 -9 -8 -8 -8 -8 ------------ Run | Scr Mat Min Exi Min Mat Gar Mat Gar Used RIF Installer 1 | . . . . . . 1 . . Robots Hacked 9 | . . . . . . . 7 2 Non-combat 4 | . . . . . . . 4 . Combat 5 | . . . . . . . 3 2 Robot Hacks Applied 13 | . . . . . . . 11 2 hold_bot 1 | . . . . . . . 1 . check_alert 1 | . . . . . . . 1 . purge_threat 2 | . . . . . . . 2 . locate_traps 1 | . . . . . . . 1 . find_garrison 1 | . . . . . . . 1 . reboot_system 2 | . . . . . . . 2 . overwrite_iff 3 | . . . . . . . 1 2 formatsys_low 2 | . . . . . . . 2 . Relay Couplers Released 20 | . . . . . . 11 . 9 Machine Destruction 20 | . . . . . . 11 . 9 Attached 9 | . . . . . . 2 3 4 Fabnet Peak Effective % . | . . . . . . . . . Robots Rewired . | . . . . . . . . . Allies Hacked . | . . . . . . . . . Hacks Repelled . | . . . . . . . . . Allies | -11 -10 -10 -10 -9 -8 -8 -8 -8 -------- Run | Scr Mat Min Exi Min Mat Gar Mat Gar Total Allies 11 | . . 3 . 3 . . 3 2 Largest Group 3 | . . 3 2 3 3 3 2 1 Highest-Rated Group 76 | . . 76 45 40 40 40 37 16 Highest-Rated Ally 31 | . . 31 31 16 16 16 23 16 Total Orders 2 | . . . . . . . 2 . AID 2 | . . . . . . . 2 . Ally Attacks 37 | . . . . . 2 34 1 . Total Damage 414 | . . . . . 24 390 . . Kills 6 | . . . . . 1 5 . . Allies Corrupted . | . . . . . . . . . Allies Melted . | . . . . . . . . . Intel | -11 -10 -10 -10 -9 -8 -8 -8 -8 ------- Run | Scr Mat Min Exi Min Mat Gar Mat Gar Robot Analysis Total 1 | . . . . . . . 1 . Derelict Logs Recovered 1 | . . 1 . . . . . . Drone Launches . | . . . . . . . . . Drone Recoveries . | . . . . . . . . . Exploration | -11 -10 -10 -10 -9 -8 -8 -8 -8 ------------- Run | Scr Mat Min Exi Min Mat Gar Mat Gar Turns Passed 7197 | 38 716 1134 317 222 126 2205 1224 1215 Spaces Moved 2921 | 10 375 630 199 127 46 797 339 398 Core 1 | . . . . . . . . 1 Treads 2541 | 10 375 630 199 127 46 797 339 18 Legs 379 | . . . . . . . . 379 Wheels . | . . . . . . . . . Hover . | . . . . . . . . . Flight . | . . . . . . . . . Fastest Speed 160 | 160 160 160 160 160 240 240 240 190 Average Speed 207 | 160 165 160 160 170 240 240 240 262 Slowest Speed 1350 | 160 320 160 160 320 240 320 240 1350 Overloaded Moves . | . . . . . . . . . Propulsion Burnouts . | . . . . . . . . . Robots Hopped . | . . . . . . . . . Cave-ins Triggered . | . . . . . . . . . Exploration Rate (%) 44 | 3 47 99 58 36 7 71 41 40 Regions Visited 8 Branch Regions 3 Pre-discovered Areas 1 | . . . 1 . . . . . Known Exits Taken 2 | . . . . . 1 . 1 . Unknown Exits Taken 5 | 1 1 1 1 1 . . . . Scrap Searched 4 | . . 2 . 2 . . . . Spaces Dug 22 | . . 2 . . . 1 3 16 Terrain Destroyed 190 | . 26 2 . . . 57 50 55 Melee . | . . . . . . . . . Projectile 17 | . . 2 . . . 3 12 . AOE 173 | . 26 . . . . 54 38 55 Terrain Rammed . | . . . . . . . . . Walls Destroyed . | . . . . . . . . . Machines Disabled . | . . . . . . . . . Actions | -11 -10 -10 -10 -9 -8 -8 -8 -8 --------- Run | Scr Mat Min Exi Min Mat Gar Mat Gar Total 3602 | 22 437 723 198 134 60 941 565 522 Wait 141 | . 13 61 . . 5 16 35 11 Move 2915 | 9 374 629 198 126 46 796 339 398 Hop . | . . . . . . . . . Pick Up 72 | 1 17 5 . 3 3 16 10 17 Fast Attach 25 | . 1 1 . 1 . 4 8 10 Attach 38 | 2 1 1 . . 4 8 12 10 Detach 2 | . . . . . . . 1 1 Swap 72 | . 6 4 . 1 1 13 32 15 Drop 46 | 4 8 6 . 3 . . 17 8 Fire 261 | 6 17 16 . . 1 86 109 26 Melee . | . . . . . . . . . Ram . | . . . . . . . . . Kick . | . . . . . . . . . Crush 8 | . . . . . . . 2 6 Escape Stasis 22 | . . . . . . 2 . 20 Rewire . | . . . . . . . . . Trap . | . . . . . . . . . Miscellaneous . | . . . . . . . . . Route ------- -11/Scrapyard -10/Materials (discovered 3 exits: [*Mat] / [*Min x2]) -10/Mines (discovered 3 exits: [*Mat x2] / *Exi) -10/Exiles -9/Mines -8/Materials (discovered 2 exits: Fac / Gar) -8/Garrison (discovered 3 exits: *Mat x3) -8/Materials -8/Garrison (discovered 3 exits: Fac x3) History --------- Turn | Location | Event 14 | -11/Scrapyard | Discovered new exit (range 3) 39 | -11/Scrapyard | Entered Materials 271 | -10/Materials | Discovered new exit (range 11) 319 | -10/Materials | Build established: Mutant 656 | -10/Materials | Discovered new exit (range 15) 700 | -10/Materials | Discovered new exit (range 14) 755 | -10/Materials | Entered Mines 756 | -10/Mines | Assembled infested the area 1191 | -10/Mines | Deemed a non-threat by the Exiles lab entrance 1379 | -10/Mines | Learned location of 1 exit from Materials 1474 | -10/Mines | A weapon hastily lodged in a ceiling crevice suddenly fell to the ground 1500 | -10/Mines | Discovered new exit (range 14) 1503 | -10/Mines | Received a Mining Laser from a helpful Derelict 1706 | -10/Mines | Discovered new exit (range 14) 1864 | -10/Mines | Discovered new exit (range 5) 1889 | -10/Mines | Entered Exiles 1889 | -10/Exiles | Accompanied by 2 allies 1919 | -10/Exiles | Led the pair of lost Derelicts to a safe place 1926 | -10/Exiles | Met 8R-AWN 1955 | -10/Exiles | Met EX-HEX 2019 | -10/Exiles | Met EX-DEC 2030 | -10/Exiles | Learned location of Zion (-7) 2185 | -10/Exiles | Discovered new exit (range 14) 2206 | -10/Exiles | Entered Mines 2208 | -9/Mines | Assisted by bots powering up and referring to "LRC-V3" 2277 | -9/Mines | Met a Derelict bent on vengeance 2332 | -9/Mines | Discovered new exit (range 16) 2388 | -9/Mines | Found the Drone Emporium 2398 | -9/Mines | Found Prototype Device 2398 | -9/Mines | Identified Sensor Drone Bay 2428 | -9/Mines | Entered Materials 2428 | -8/Materials | Accompanied by 3 allies 2428 | -8/Materials | Evolved 4 slots: Propulsion x2, Utility x2 2429 | -8/Materials | Identified exit to Factory 2554 | -8/Materials | Identified exit to Garrison 2554 | -8/Materials | Entered Garrison 2554 | -8/Garrison | Accompanied by 3 allies 2598 | -8/Garrison | Triggered checkpoint 2629 | -8/Garrison | Discovered new exit (range 5) 2768 | -8/Garrison | Triggered checkpoint 2768 | -8/Garrison | Triggered checkpoint 2805 | -8/Garrison | Triggered checkpoint 3024 | -8/Garrison | Triggered checkpoint 3097 | -8/Garrison | System corruption reached 10% 3153 | -8/Garrison | Lost 11 parts (1p4n3u3w) 3360 | -8/Garrison | Discovered new exit (range 14) 3556 | -8/Garrison | Triggered checkpoint 3600 | -8/Garrison | Build established: Scavenger-Mutant 3659 | -8/Garrison | Discovered new exit (range 14) 3894 | -8/Garrison | Triggered checkpoint 3970 | -8/Garrison | Triggered checkpoint 3993 | -8/Garrison | Installed Relay Interface Framework 4050 | -8/Garrison | Garrison Relay disabled 4350 | -8/Garrison | Build established: Bothacker-Mutant 4360 | -8/Garrison | Garrison Relay disabled 4588 | -8/Garrison | Triggered checkpoint 4660 | -8/Garrison | Garrison Relay disabled 4759 | -8/Garrison | Entered Materials 5159 | -8/Materials | First assault squad dispatched 5230 | -8/Materials | Core integrity fell below 50% 5252 | -8/Materials | Lost 4 parts (1p1n2u) 5835 | -8/Materials | Garrison activated, responded to threat 5913 | -8/Materials | Destroyed 8 combat bots 5920 | -8/Materials | Lost 6 parts (1p2n2u1w) 5983 | -8/Materials | Identified exit to Garrison 5983 | -8/Materials | Entered Garrison 6001 | -8/Garrison | Triggered checkpoint 6069 | -8/Garrison | Lost 3 parts (2n1w) 6440 | -8/Garrison | Triggered checkpoint 6562 | -8/Garrison | Learned Factory security intel 6664 | -8/Garrison | Triggered checkpoint 6668 | -8/Garrison | Core integrity fell below 20% 6708 | -8/Garrison | Garrison Relay disabled 6745 | -8/Garrison | Garrison Relay disabled 7076 | -8/Garrison | Triggered checkpoint 7084 | -8/Garrison | Discovered exit to Factory (range 53) 7084 | -8/Garrison | Discovered exit to Factory (range 75) 7084 | -8/Garrison | Discovered exit to Factory (range 27) 7192 | -8/Garrison | Spotted B-75 Beast 7198 | -8/Garrison | Destroyed by B-75 Beast with Magnetic Acceleration Cannon Last Messages --------------- 07110_ Stasis field depleted. 07110_ Triggered Stasis Trap. 07110_ A bubble of rippling energy engulfs the area. 07110_ Field strength at 85. 07112_ Field strength at 70. 07113_ Field strength at 55. 07114_ System corrupted: Matter fused (-7). 07114_ Field strength at 40. 07115_ Field strength at 25. 07116_ Field strength at 10. 07117_ Stasis field depleted. 07138_ System corrupted: Substantial component data lost. 07165_ System corrupted: Energy discharge (-106). 07181_ System corrupted: Component data lost. 07183_ ALERT: Garrison interior compromised. 07190_ Destroyed Unknown Flight Unit. 07190_ S-10 Pest destroyed. 07192_ Destroyed Unknown Flight Unit. 07192_ S-10 Pest destroyed. 07198_ Lgt. Treads destroyed. Map ----- +----------------------------------------------------+ | #??????# ^^ #?? | | #??????# ^^ #?? | | #??????# ###+###++######## # ###########?? | | # #??????# #?# #?# #??????# =### ??????????? | | # #??????# #?# #?# #??????## ##?????????????? | | # #??????# ### #?# #???????# #??????????????? | | # #??????# + #?# ######### #??????????????? | | # ######## #####?# #??????????????? | | # ## ## ###???# ##### #####??????????????? | | # ##""""## # ##??# #??## #####??????????????? | | # #### #??#! !!!#??????????????? | | + #??#! !!!!#??????????????? | | # #??########??????????????? | | # ## # #########????????????????????????? | | # ## ## ###???????????????????????????????? | | " ^^ #???????????????????????????????? | | " ^^ #???????????????????????????????? | | " ^ * #???????????????????????????????? | | " ^ = ###?????????????????????????????? | | # ## ## ### ????????????????????????????? | | # ## ## ######??????????????????????? | | + [[ = #???????????????#######? | | + %%[ ######??????????#]] !!#? | | # % "#???########]] !!#? | | # ##""""############# ##"T"#???# + ^ #? | | # ## #???# #?????# @ #####???### ####!! !!#? | | # ##+##+#???# #?????# #?????????# #??#!! !!#? | | + + ## #???# #??### #?????????# #??#######? | | # ##### #???# #??#BB #?????????# #?????????? | | # #???# #???# #??#BB % ##???????###^#?????????? | | # #???# ##### #### %[ ######### # ###???????? | | # #???# = #???????? | | #???# #???????? | | #???####### ####### ############+# #???????? | | #??????#### ####??# #??????????# ###???????? | | #+# #??????# #??# #??????????# #?????????? | | # # #??????# #??# #??????????# #?????????? | | # # #?????## " #### #??????????# #?????????? | | # #?????#"" """ + #??????????# #?????????? | | ### #?????#" " #### #??????????# #?????????? | | ??# ##????#" #??# #??????????# #?????????? | | ?## ##???#" " #??# ############+##########? | | ?# #???#"""""####??# #? | | ?# #???#####"#?????# #? | | ?## ##???????#"#?????# #? | | ??####????????###?????#^ #######+###### # ## #? | | ??????????????????????#^ #?????# #??# # ## #? | | ??????????????????????# #?????# #??# ### #? | | ??????????????????????# ###???# #??###[ ## #? | | ??????????????????????# ##### #### [== ## #? | +----------------------------------------------------+ Best States ------------- Heat Dissipation 50 Energy Generation 15 Energy Capacity 275 Matter Stores 300 Matter Capacity 300 Sight Range 16 Terrain Scan Density 10 Armor Coverage 600 Evasion (%) 40 Targeting Accuracy 8 Recoil Reduction 5 Relay Coupler Types 3 Relay Coupler Value 54 Item Schematics ----------------- None Robot Schematics ------------------ None Fabricated ------------ Nothing Alien Tech Used ----------------- None Achievements -------------- None Challenges ------------ None Game ------ Seed WeaponGuidedStabilizer Manual? 0 Play Time 00:39:36 Cumulative 631.4 hours Start 2022.07.12 @ 22:54:11 End 2022.07.12 @ 23:43:46 Sessions 3 Manual Loads 0 Difficulty Rogue Special Mode None Game No. 587 Rogue 587 Adventurer 0 Explorer 0 Win Type - Total 23 Types 10/4/5/1/1/0/1/1/0 Lore% 90 Gallery% 94 Achievement% 77 Wizard Run 0 Options --------- ASCII 0 Keyboard 0 Movement Mouse Keybinds 1 Fullscreen 2 Font 24/Smallcaps Map View 76x50 Tactical HUD 1 Map Filters NONE Filters NONE Steam 1 RUN: 8c5fddee-fb54-4224-8d4b-77cf4eb9dbe9